Cogmind - Beta 13 @@@ ROGUE MODE // 2024.06.20 @ 13:53:49 Player: wad Result: Destroyed by YI-UF0 with YI-UF0's Doublenader Performance ------------- Evolutions (0) 0 Regions Visited (2) 400 Robots Destroyed (21) 105 Value Destroyed (331) 331 Prototype IDs (1) 20 Alien Tech Used (0) 0 Bonus (0) 0 TOTAL SCORE: 856 Bonus ------- None Cogmind --------- Core Integrity 0/250 Matter 296/300 Energy 73/100 System Corruption 0% Temperature Cool (0) Movement Core (350) Ox6 Location -10/Mines Parts ------- > --- POWER (1) -------- (None) > --- PROPULSION (2) --- (None) > --- UTILITY (2) ------ Large Storage Unit > --- WEAPON (2) ------- (None) > --- INVENTORY (15) --- Ion Engine Improved Aluminum Leg Improved Aluminum Leg Flight Unit Flight Unit Flight Unit Flight Unit Improved Heat Sink Large Storage Unit Autogun Maul Maul Heavy Hammer Heavy Hammer Peak State ------------ > --- POWER ------------ Ion Engine > --- PROPULSION ------- Improved Aluminum Leg Improved Aluminum Leg > --- UTILITY ---------- Large Storage Unit Signal Interpreter > --- WEAPON ----------- Improved EM Shotgun Improved EM Shotgun > --- INVENTORY -------- Ion Engine Light Treads Light Treads Aluminum Leg Aluminum Leg Aluminum Leg Improved Aluminum Leg Improved Aluminum Leg Improved Heat Sink Medium Storage Unit Large Storage Unit Autogun Autogun Heavy Hammer Heavy Hammer [Rating: 15] Favorites ----------- Power Ion Engine Engine Ion Engine Propulsion Aluminum Leg Treads Light Treads Leg Aluminum Leg Utility Large Storage Unit Storage Large Storage Unit Processor Signal Interpreter Weapon Improved EM Shotgun Energy Gun Improved EM Shotgun Ballistic Gun Autogun Build | -11 -10 -10 ------- Run | Yrd Mat Min Slots Evolved . | . . . Power . | . . . Propulsion . | . . . Utility . | . . . Weapon . | . . . Parts Attached 16 | 9 6 1 Power 1 | 1 . . Engine 1 | 1 . . Core . | . . . Reactor . | . . . Propulsion 7 | 5 2 . Treads 2 | 2 . . Leg 5 | 3 2 . Wheel . | . . . Hover . | . . . Flight . | . . . Utility 3 | 1 2 . Device . | . . . Storage 2 | 1 1 . Processor 1 | . 1 . Hackware . | . . . Protection . | . . . Artifact . | . . . Weapon 5 | 2 2 1 Energy Gun 4 | 2 2 . Energy Cannon . | . . . Ballistic Gun 1 | . . 1 Ballistic Cannon . | . . . Launcher . | . . . Special Weapon . | . . . Impact Weapon . | . . . Slashing Weapon . | . . . Piercing Weapon . | . . . Special Melee Weapon . | . . . Unidentified Prototypes 1 | . 1 . Parts Lost 7 | . . 7 Power 1 | . . 1 Propulsion 2 | . . 2 Utility 1 | . . 1 Weapon 3 | . . 3 Highest Loss Streak 7 | . . 7 To Critical Strikes . | . . . Average Slot Usage (%) 95 | . 93 98 Engine 13 | . 14 13 Leg 27 | . 28 27 Storage 14 | . 14 14 Processor 10 | . 7 14 Energy Gun 27 | . 28 27 Naked Turns . | . . . Heaviest Build 31 | 14 31 31 Greatest Support 26 | 20 26 26 Greatest Overweight (x) 7 | . 1 7 Average Overweight (x) . | . . 1 Largest Inventory Capacity 15 | 8 15 15 Average Capacity 13 | 6 14 15 Most Carried 15 | 4 15 15 Average Carried 10 | 3 9 14 Final Capacity 15 | 8 15 15 Final Carried 14 | 4 14 14 Class Distribution -------------------- 100% | Mutant Dominant Class ---------------- Mutant | -10/Materials Mutant | -10/Mines Resources | -11 -10 -10 ----------- Run | Yrd Mat Min Matter Collected 350 | 269 61 20 Remotely . | . . . Salvage Created 910 | 60 742 108 Parts 46 | 1 36 9 Haulers Intercepted 1 | . 1 . Recyclers Shooed 3 | . 3 . Parts Field Recycled . | . . . Retrieved Matter . | . . . Parts Self-Destructed . | . . . Prevented . | . . . Kills | -11 -10 -10 ------- Run | Yrd Mat Min Combat Hostiles Destroyed 9 | . 5 4 Guns 9 | . 5 4 Classes Destroyed 8 | 1 6 1 Worker 1 | . 1 . Builder 3 | . 3 . Tunneler 1 | . 1 . Hauler 1 | . 1 . Recycler 5 | 1 4 . Watcher 1 | . 1 . Swarmer 3 | . . 3 Grunt 6 | . 5 1 Best Kill Streak 4 | 1 4 3 Combat Bots Only 3 | . 2 3 Max Kills in Single Turn 2 | 1 2 2 Gunslinging . | . . . Exploded . | . . . Melee . | . . . Uniques/NPCs Destroyed . | . . . Combat | -11 -10 -10 -------- Run | Yrd Mat Min Hostile Shots Fired 58 | . 24 34 Missed 13 | . 5 8 Damage Taken 919 | . 217 702 Core 250 | . 47 203 Absorbed by Shields . | . . . Core Remaining (%) 100 | 100 . . Volleys Fired 38 | 2 27 9 Largest 2 | 2 2 2 Hottest 90 | 80 90 90 Shots Fired 74 | 4 54 16 Gun 74 | 4 54 16 Cannon . | . . . Launcher . | . . . Special . | . . . Kinetic 1 | . . 1 Thermal . | . . . Explosive . | . . . Electromagnetic 73 | 4 54 15 Robot Hit Streak 8 | 3 8 8 Robot Miss Streak 3 | . 3 3 Penetration Max . | . . . Secondary Targets 2 | . 2 . Max Gunslinging Chain 1 | . 1 . Shots Hit Robots 54 | 3 39 12 Core Hits 36 | 2 27 7 Critical Kills . | . . . Critical Parts Destroyed . | . . . Critical Strikes . | . . . Melee Attacks . | . . . Impact . | . . . Slashing . | . . . Piercing . | . . . Sneak Attacks . | . . . Combat Hostiles . | . . . Follow-up Attacks . | . . . Damage Inflicted 1013 | 61 760 192 Guns 900 | 39 669 192 Cannons . | . . . Explosions 113 | 22 91 . Melee . | . . . Ramming . | . . . Kinetic 12 | . . 12 Thermal 113 | 22 91 . Explosive . | . . . Electromagnetic 888 | 39 669 180 Impact . | . . . Slashing . | . . . Piercing . | . . . Highest Corruption . | . . . Average Corruption . | . . . Corruption Purged . | . . . Corruption Blocked . | . . . Overload Shots . | . . . Overflow Damage . | . . . Projectiles . | . . . Explosions . | . . . Melee . | . . . Knockbacks . | . . . Impact . | . . . Kinetic . | . . . Secondary . | . . . Self-Inflicted Damage 5 | . 5 . Shots 1 | . 1 . Rammed . | . . . Targets Rammed . | . . . Kicked . | . . . Crushed . | . . . Highest Temperature 150 | 36 150 117 Average Temperature 45 | 20 47 40 Received Heat Transfer 162 | . 135 27 Siege Activations . | . . . Robots Corrupted . | . . . Combat Hostiles . | . . . Parts Fried 7 | 1 5 1 Impact Corruptions . | . . . Robots Melted . | . . . Combat Hostiles . | . . . Parts Melted . | . . . Heat Transferred 150 | 50 100 . Parts Sabotaged . | . . . Parts Stolen . | . . . Parts Stripped . | . . . Power Chain Reactions 3 | 1 2 . Alert | -11 -10 -10 ------- Run | Yrd Mat Min Peak Influence 204 | 5 204 112 Initial 12 | . 3 12 Average 49 | 2 49 68 Maximum Alert Level 1 | . 1 . Low Security (%) 98 | 100 96 100 Level 1 1 | . 3 . Level 2 . | . . . Level 3 . | . . . Level 4 . | . . . Level 5 . | . . . High Security . | . . . Max Security . | . . . Squads Dispatched 1 | . 1 . Investigation 1 | . 1 . Extermination . | . . . Reinforcement . | . . . Assault . | . . . Garrison . | . . . Intercept . | . . . Searches Triggered . | . . . Construction Impeded . | . . . Haulers Reinforced . | . . . Active Scanning Responses . | . . . Cargo Convoy Interrupts . | . . . Stealth | -11 -10 -10 --------- Run | Yrd Mat Min Distress Signals 3 | . 3 . Communications Jammed . | . . . Distress Signals . | . . . Times Spotted 15 | . 10 5 Peak Tracking Total 3 | . 3 3 Tactical Retreats 1 | . 1 . Traps | -11 -10 -10 ------- Run | Yrd Mat Min Traps Triggered 1 | . 1 . Indirectly . | . . . Trap Hack Attempts . | . . . Triggered . | . . . Disarmed . | . . . Reprogrammed . | . . . Reused . | . . . Traps Extracted . | . . . Installed . | . . . Triggered . | . . . Machines | -11 -10 -10 ---------- Run | Yrd Mat Min Machines Disabled . | . . . Max in Single Turn . | . . . Machines Repaired . | . . . Machines Dismantled . | . . . Machines Sabotaged . | . . . Overloaded Fab Kills . | . . . Hacking | -11 -10 -10 --------- Run | Yrd Mat Min Machines Accessed 1 | . 1 . Terminals . | . . . Fabricators . | . . . Repair Stations . | . . . Recycling Units 1 | . 1 . Scanalyzers . | . . . Garrison Access . | . . . Total Hacks 3 | . 3 . Successful 3 | . 3 . Failed . | . . . Catastrophic . | . . . Database Lockouts . | . . . Manual . | . . . Terminals . | . . . Fabricators . | . . . Repair Stations . | . . . Recycling Units 3 | . 3 . Scanalyzers . | . . . Garrison Access . | . . . Terminal Hacks . | . . . Fabricator Hacks . | . . . Repair Station Hacks . | . . . Recycling Unit Hacks 3 | . 3 . Process 2 | . 2 . Report Inventory 1 | . 1 . Scanalyzer . | . . . Garrison Access Hacks . | . . . Unauthorized Hacks . | . . . Terminals . | . . . Fabricators . | . . . Repair Stations . | . . . Recycling Units . | . . . Scanalyzers . | . . . Garrison Access . | . . . Data Cores Recovered . | . . . Used . | . . . Hacking Detections . | . . . Full Trace Events . | . . . Feedback Events . | . . . Feedback Blocked . | . . . Robot Schematics Acquired . | . . . Robots Built . | . . . Authchips . | . . . Time . | . . . Total Robot Build Rating . | . . . Part Schematics Acquired . | . . . Parts Built . | . . . Authchips . | . . . Time . | . . . Total Part Build Rating . | . . . Parts Repaired . | . . . Time . | . . . Parts Recycled . | . . . Recycled Matter 180 | . 180 . Retrieved Matter . | . . . Retrieved Components . | . . . Parts Scanalyzed . | . . . Part Schematics Acquired . | . . . Parts Damaged . | . . . Bothacking | -11 -10 -10 ------------ Run | Yrd Mat Min Used RIF Installer . | . . . Robots Hacked . | . . . Non-combat . | . . . Combat . | . . . Robot Hacks Applied . | . . . Relay Couplers Released . | . . . Fabnet Peak Effective % . | . . . Robots Rewired . | . . . Allies Hacked . | . . . Hacks Repelled . | . . . Allies | -11 -10 -10 -------- Run | Yrd Mat Min Total Allies 1 | . . 1 Largest Group 1 | . . 1 Highest-Rated Group 31 | . . 31 Highest-Rated Ally 31 | . . 31 Total Orders . | . . . Ally Attacks 2 | . . 2 Total Damage 22 | . . 22 Kills . | . . . Allies Corrupted . | . . . Allies Melted . | . . . Intel | -11 -10 -10 ------- Run | Yrd Mat Min Robot Analysis Total . | . . . Derelict Logs Recovered . | . . . Drone Launches . | . . . Drone Recoveries . | . . . Exploration | -11 -10 -10 ------------- Run | Yrd Mat Min Turns Passed 1286 | 187 644 455 Spaces Moved 639 | 137 292 210 Core 12 | 11 . 1 Treads 7 | 7 . . Legs 620 | 119 292 209 Wheels . | . . . Hover . | . . . Flight . | . . . Fastest Speed 50 | 50 120 190 Average Speed 169 | 116 178 191 Slowest Speed 400 | 160 190 400 Overloaded Moves . | . . . Propulsion Burnouts . | . . . Robots Hopped . | . . . Cave-ins Triggered . | . . . Exploration Rate (%) 25 | 8 35 32 Regions Visited 2 Branch Regions 1 Pre-discovered Areas . | . . . Known Exits Taken 1 | . 1 . Unknown Exits Taken 1 | 1 . . Scrap Searched . | . . . Spaces Dug . | . . . Terrain Destroyed 6 | . 6 . Melee . | . . . Projectile . | . . . AOE 6 | . 6 . Terrain Rammed . | . . . Walls Destroyed . | . . . Machines Disabled . | . . . Actions | -11 -10 -10 --------- Run | Yrd Mat Min Total 775 | 159 366 250 Wait 32 | . 11 21 Move 637 | 136 291 210 Hop . | . . . Pick Up 37 | 11 21 5 Fast Attach . | . . . Attach 10 | 6 3 1 Detach . | . . . Swap 6 | 3 3 . Drop 15 | 1 10 4 Fire 38 | 2 27 9 Melee . | . . . Ram . | . . . Kick . | . . . Crush . | . . . Escape Stasis . | . . . Rewire . | . . . Trap . | . . . Miscellaneous . | . . . Route ------- -11/Scrapyard -10/Materials -10/Mines (discovered 1 exit: *Exi) History --------- Turn | Location | Event 19 | -11/Scrapyard | Discovered new exit (range 15) 188 | -11/Scrapyard | Entered Materials 302 | -10/Materials | Build established: Mutant 394 | -10/Materials | Discovered new exit (range 13) 604 | -10/Materials | Identified exit to Mines 832 | -10/Materials | Entered Mines 1058 | -10/Mines | Deemed a non-threat by the Exiles lab entrance 1060 | -10/Mines | Discovered new exit (range 5) 1068 | -10/Mines | Identified exit to Exiles 1213 | -10/Mines | Escorted by a lone wolf Derelict 1278 | -10/Mines | Core integrity fell below 50% 1284 | -10/Mines | Core integrity fell below 20% 1287 | -10/Mines | Destroyed by YI-UF0 with YI-UF0's Doublenader Last Messages --------------- A derelict emerges from the shadows: "Nice work disposing of those Unaware! I'm happy to return the favor and help see you out of these parts." The unstable cave ceiling collapses. Imp. Aluminum Leg destroyed. The unstable cave ceiling collapses. VY-PCM(g): "Mission, incomplete...*fzzt*" VY-PCM(g) destroyed. Ion Engine destroyed. The unstable cave ceiling collapses. Imp. EM Shotgun destroyed. Imp. Aluminum Leg destroyed. The unstable cave ceiling collapses. Imp. EM Shotgun destroyed. YI-UF0 mumbles something. The unstable cave ceiling collapses. Signal Interpreter destroyed. The unstable cave ceiling collapses. Autogun destroyed. Map ----- +----------------------------------------------------+ | ?????????????????????????????????????????????????? | | ?????????????????????????????????????????????????? | | ?????????????????????????????????????????????????? | | ?????????????????????????????????????????????????? | | ?????????????????????????????????????????????????? | | ?????????????????????????????????????????????????? | | ?????????????????????????????????????????????????? | | ?????????????????????????????????????????????????? | | ?????????????????????????????????????????????????? | | ?????????????????????????????????????????????????? | | ?????????????????????????????????????????????????? | | ????????????????????? #?????????????????????????? | | ??????????????????# ????????????????????????? | | ???????????????? ?????????? ?????????????? | | ??????????????## ?????????# ?????????????? | | ?????????????? " ????#????# ##?? $#??????? | | ????????????? =%??? #???## ##? #??????? | | ?????????????% ###? ##### ## ???????? | | ????????????? % #? ? ???????? | | ?????????????? ## ? ????????? | | ???????????????? # ## k ????????? | | ?????????????????# % #????????? | | ??????????????????# #?????????? | | ????????????????## # # #?????????? | | ????????????????# #??????????? | | ?????????????????# @ # ## #??????????? | | ???????????????# # g ## ##########?? | | ????????????? * ## ## #?? | | ???????????# ## """ #?? | | ???????????# # # # ## ## """ #?? | | ??????????????# ##### ## #??# """ #?? | | ??????????????#### #????## ## #??## ## ### | | ?????????????????####??????# ##%#???# ## """ | | ???????????????????????????# =#???# ## """ ### | | ???????????????????????????# ####???# ## """ #?? | | ???????????????????????????# #??????# ## #?? | | ???????????????????????????# #??????# ##########?? | | ??????????????????########## #??????# #???????? | | ??????????????# #??????#### #???????? | | ????????????# ###########?????????# #??####?? | | ???????????????????????????????????????# #?## ##? | | ???????????????????????????????????????# ### #? | | ???????????????????????????????????????# #? | | ???????????????????????????????????????#### ## | | ??????????????????????????????????????????## # | | ???????????????????????????????????????????## | | ????????????????????????????????????????????# | | ????????????????????????????????????????????## | | ?????????????????????????????????????????????## | | ??????????????????????????????????????????????### | +----------------------------------------------------+ Best States ------------- Heat Dissipation 25 Energy Generation 10 Energy Capacity 250 Matter Stores 300 Matter Capacity 300 Sight Range 16 Terrain Scan Density 10 Evasion (%) 55 Recoil Reduction 1 Item Schematics ----------------- None Robot Schematics ------------------ None Fabricated ------------ Nothing Alien Tech Used ----------------- None Achievements -------------- None Challenges ------------ None Game ------ Seed SubatomicInsulatedFlakker Manual? 0 Play Time 00:19:03 Cumulative 1.0 hours Start 2024.06.20 @ 13:35:30 End 2024.06.20 @ 13:53:49 Sessions 1 Manual Loads 0 Difficulty Rogue Special Mode None Game No. 3 Rogue 3 Adventurer 0 Explorer 0 Win Type - Total 0 Types 0/0/0/0/0/0/0/0/0 Lore% 1 Gallery% 4 Achievement% 4 Wizard Run 0 Options --------- Layout 1 ASCII 0 Keyboard 0 Movement Arrows Keybinds 0 Fullscreen 1 Font 24/Smallcaps Map View 50x35 Zoom Use 0% Tactical HUD 0 Map Filters NONE Filters NONE Steam 1 RUN: 607e8cb2-74b5-4996-b855-683080e185fb